bitfinex/quotes_ETHUSD_20241203
["timestamp","ask_amount","ask_price","bid_price","bid_amount"]
[1733234342356,5.0,3551.9,3550.1,0.89]
[1733234342561,0.41990399,3551.8,3550.1,0.89]
[1733234342864,0.55,3551.5,3550.1,0.31570949]
[1733234343216,0.56344862,3550.4,3550.1,0.31570949]
[1733234343464,0.56344862,3550.4,3550.1,0.63570949]
[1733234343614,0.55,3551.4,3550.1,0.63570949]
[1733234343813,0.55,3551.2,3550.1,0.63570949]
[1733234344266,0.57721604,3550.4,3550.1,0.63570949]
[1733234344571,0.55,3551.5,3550.1,0.63570949]
[1733234344765,0.55,3551.7,3550.1,0.63570949]
[1733234345362,0.14567119,3551.8,3550.1,0.63570949]
[1733234345562,0.57473339,3550.7,3550.1,0.63570949]
[1733234345770,0.14567119,3551.8,3550.1,0.63570949]
[1733234346014,0.57618278,3550.8,3550.1,0.63570949]
[1733234346861,0.55,3551.7,3550.1,2.0576582]
[1733234347295,0.55,3551.3,3550.1,2.0576582]
[1733234347623,0.41990399,3551.2,3550.1,2.0576582]
[1733234347779,3.0,3551.1,3548.4,1.41099228]
[1733234347983,0.41990399,3551.0,3548.4,2.00771917]
[1733234348319,1e-08,3550.2,3548.4,2.00771917]
[1733234348478,3.0,3550.9,3548.4,2.00771917]
[1733234349067,0.36923985,3551.2,3548.6,1.44559505]
[1733234349271,0.55586285,3549.9,3548.5,1.4120799]
[1733234349468,0.55,3551.0,3548.7,1.45105592]
[1733234349708,10.58677525,3551.2,3548.7,1.45105592]
[1733234349709,0.55,3550.8,3548.7,1.45105592]
[1733234349911,0.55,3550.8,3548.6,1.67465478]
[1733234350068,0.55766907,3550.1,3548.7,0.0281764]
[1733234350268,0.14562227,3551.4,3548.7,1.45105592]
[1733234350584,0.14562227,3551.4,3549.4,1.49119405]
[1733234350788,0.14562227,3551.4,3548.9,1.46033452]
[1733234350789,0.57307834,3550.5,3548.9,1.46033452]
[1733234351006,0.99298233,3550.5,3548.7,1.45105592]
[1733234351203,0.57307834,3550.5,3548.2,1.42277729]
[1733234351371,5.0,3550.8,3548.1,1.49944107]
[1733234351571,0.41990399,3550.4,3548.1,1.49944107]
[1733234351799,5.0,3550.0,3548.1,1.49944107]
[1733234351976,5.0,3550.0,3547.2,1.46286477]
[1733234351977,0.96990399,3549.9,3547.2,1.46286477]
[1733234352175,0.96990399,3549.9,3547.8,1.13055]
[1733234352374,0.55,3549.9,3547.9,1.42777825]
[1733234352986,0.55,3549.7,3547.4,1.49243918]
[1733234353186,0.55,3549.6,3547.4,1.49243918]
[1733234353394,0.27,3550.0,3547.4,1.49243918]
[1733234353395,3.0,3550.0,3547.4,2.62307618]
[1733234353586,3.0,3550.4,3547.6,1.41668842]
[1733234353787,3.36350763,3550.8,3547.7,1.51431319]
[1733234354027,3.36350763,3550.8,3547.5,0.34443781]
[1733234354028,0.36350763,3550.8,3548.1,1.59944107]
[1733234354327,5.0,3551.3,3548.1,3.08294107]
[1733234354328,4.46797309,3551.2,3548.1,3.08294107]
[1733234354524,5.0,3550.4,3547.5,1.48709668]
[1733234354723,0.57677701,3548.8,3547.6,1.87846179]
[1733234354925,2.7177,3550.7,3547.8,0.3]
[1733234355091,3.0,3550.6,3547.7,1.6559]
[1733234355291,0.55108349,3549.1,3547.7,1.6559]
[1733234355606,0.55108349,3549.1,3548.0,0.2]
[1733234355808,0.55108349,3549.1,3548.1,0.611855]
[1733234356011,0.55108349,3549.1,3548.3,0.2]
[1733234356375,6.16139944,3551.3,3548.8,2.81784]
[1733234356376,1.5093849,3551.3,3548.8,2.81784]
[1733234356733,0.37147801,3551.3,3548.9,0.1]
[1733234357024,0.37147801,3551.3,3548.8,1.5783]
[1733234357177,0.37147801,3551.3,3548.9,0.1]
[1733234357373,0.56962775,3550.1,3549.0,0.469614]
[1733234357626,0.56962775,3550.1,3548.9,0.1]
[1733234357991,0.37147801,3551.3,3549.0,3.01762]
[1733234358204,0.37147801,3551.3,3548.9,0.1]
[1733234358385,0.56149505,3550.3,3548.9,3.11769]
[1733234358586,0.56149505,3550.3,3547.5,1.02797502]
[1733234358587,0.9,3549.7,3547.5,1.02797502]
[1733234358798,5.0,3548.3,3545.8,1.42152408]
[1733234359015,5.0,3548.3,3544.8,1.47063488]
[1733234359016,1.5652,3548.0,3544.8,1.47063488]
[1733234359178,1.5652,3547.0,3545.0,1.41847391]
[1733234359378,1.05643893,3546.9,3545.0,1.41847391]
[1733234359694,5.1283,3546.8,3545.0,1.41847391]
[1733234359889,0.55,3546.6,3544.0,2.82161]
[1733234360095,4.5783,3546.0,3542.7,2.8227]
[1733234360294,4.5783,3546.0,3542.6,2.93571474]
[1733234360295,0.55,3545.9,3543.1,2.82238]
[1733234360494,0.55,3545.7,3542.4,0.02821889]
[1733234360727,1.5783,3545.8,3542.4,0.02821889]
[1733234361028,1.5783,3545.8,3543.3,2.82219]
[1733234361213,0.55,3545.7,3542.5,1.131717]
[1733234361385,0.29277483,3544.8,3542.7,2.8227]
[1733234361580,0.29277483,3544.8,3543.4,2.82207]
[1733234361796,0.29277483,3544.8,3543.2,1.5932]
[1733234361998,0.29277483,3544.8,3543.5,2.822]
[1733234362365,0.29277483,3544.8,3543.6,2.82198]
[1733234362627,0.29277483,3544.8,3543.7,0.282198]
[1733234362930,0.29277483,3544.8,3544.6,2.82116]
[1733234363230,0.29277483,3544.8,3544.5,1.5626]
[1733234363732,0.29277483,3544.8,3544.6,2.82115]
[1733234364024,0.5566945,3545.8,3544.6,2.84935553]
[1733234364223,1.5783,3546.6,3544.6,2.84935553]
[1733234364224,1.5783,3546.6,3544.6,0.02820553]
[1733234364429,0.56256812,3546.7,3546.0,2.82005]
[1733234364633,1.5783,3548.0,3546.0,1.5044]
[1733234365157,0.56410951,3547.6,3546.0,1.5044]
[1733234365488,1.5783,3548.0,3546.8,2.81942]
[1733234365740,2.71690733,3550.2,3546.0,1.5044]
[1733234365741,1.5783,3548.6,3547.0,2.81928]
[1733234366530,0.08749443,3547.1,3547.0,4.33338]
[1733234366733,0.0035189,3547.1,3547.0,5.07967485]
[1733234367521,0.56173551,3548.8,3547.0,2.26039485]
[1733234367727,0.56173551,3548.8,3547.8,2.81858]
[1733234367934,1.5392,3549.2,3548.3,2.81822]
[1733234368113,2.52354125,3551.1,3547.4,0.02818035]
[1733234368114,0.56597481,3549.0,3547.4,0.02818035]
[1733234368295,1.5636,3550.4,3547.1,3.36917]
[1733234368525,0.71684348,3549.1,3548.2,2.81831]
[1733234368729,0.57117502,3549.1,3548.3,2.81819]
[1733234368926,0.57117502,3549.1,3547.6,0.02817819]
[1733234368927,0.14576231,3549.0,3547.6,0.02817819]
[1733234369183,0.14576231,3549.0,3547.5,0.02817753]
[1733234369529,1.5636,3550.4,3547.5,0.02817753]
[1733234369726,0.57812747,3549.8,3547.6,2.81874]
[1733234369927,0.57812747,3549.8,3547.7,0.28469171]
[1733234370127,0.57812747,3549.8,3547.8,0.02817706]
[1733234370326,1.5636,3550.4,3548.1,4.4174]
[1733234370572,1.5636,3550.4,3548.1,1.599]
[1733234370726,1.5636,3550.4,3548.1,1.62717634]
[1733234371078,1.5636,3550.4,3548.7,2.81793]
[1733234371079,0.56733138,3550.1,3548.7,2.81793]
[1733234371372,0.14568754,3551.3,3549.7,2.81713]
[1733234371373,1.5761,3551.2,3549.7,2.81713]
[1733234371553,0.56897058,3551.1,3549.6,1.626]
[1733234371885,1.5761,3551.8,3550.7,2.81632]
[1733234372027,0.5563092,3551.5,3550.3,2.81665]
[1733234372241,0.5563092,3551.5,3549.6,1.626]
[1733234372777,1.5761,3551.8,3549.6,1.626]
[1733234372947,0.57590233,3550.7,3549.6,1.626]
[1733234373289,0.57590233,3550.7,3547.4,2.91891]
[1733234373290,1.5783,3550.6,3547.9,2.81853]
[1733234373590,1.5783,3550.4,3547.8,2.81862]
[1733234373745,0.55,3550.2,3547.6,1.5317]
[1733234373951,4.5783,3550.3,3548.0,2.81848]
[1733234374142,0.55,3550.1,3547.0,1.5317]
[1733234374492,0.55,3549.9,3547.0,1.5317]
[1733234374657,1.5783,3548.7,3547.1,2.8192]
[1733234374856,1.5783,3548.7,3547.5,2.81881]
[1733234375058,1.5783,3548.7,3547.0,1.5317]
[1733234376035,1.5783,3548.7,3547.9,2.81856]
[1733234376200,1.53326,3549.0,3548.0,0.281856]
[1733234376490,1.53326,3549.0,3548.2,2.81829]
[1733234376672,1.53326,3549.0,3547.0,1.5317]
[1733234376874,1.53326,3549.0,3547.1,0.02818042]
[1733234377053,1.53326,3549.0,3547.1,0.02818199]
[1733234377271,1.53326,3549.0,3548.0,2.81846]
[1733234377586,0.14549809,3548.9,3548.1,0.028182]
[1733234377795,0.14549809,3548.9,3548.0,0.281846]
[1733234377975,1.53326,3549.0,3548.6,2.818]
[1733234378597,1.53326,3549.0,3548.9,2.81777]
[1733234378748,1.53326,3549.0,3548.9,3.10236475]
[1733234378948,1.5783,3550.9,3549.0,2.81769]
[1733234379190,1.5783,3550.9,3549.0,1.5095]
[1733234379485,1.5783,3550.6,3548.3,2.81818]
[1733234379645,1.5783,3550.6,3548.1,2.8184]
[1733234379845,1.5783,3550.6,3548.0,0.281846]
[1733234379846,1.5783,3550.6,3548.2,0.3100246]
[1733234380048,1.5783,3550.6,3548.3,2.81817]
[1733234380291,3.0,3550.9,3548.0,0.281846]
[1733234380292,1.5112,3549.2,3548.0,0.281846]
[1733234380448,1.5112,3549.2,3547.5,1.6564]
[1733234380663,1.5112,3549.2,3547.6,0.02818323]
[1733234380902,1.5112,3549.2,3547.6,2.8188]
[1733234381192,1.5112,3549.2,3547.7,2.81872]
[1733234381488,0.36081297,3550.6,3548.7,2.81788]
[1733234381694,1.5112,3550.5,3549.0,2.81768]
[1733234381896,1.5112,3550.5,3549.1,2.8176]
[1733234382077,0.56638567,3549.8,3548.7,0.281788]
[1733234382286,0.56638567,3549.8,3549.2,2.81753]
[1733234382482,0.56638567,3549.8,3548.7,0.281788]
[1733234382483,0.56638567,3549.8,3549.0,1.6312]
[1733234382786,0.56638567,3549.8,3549.7,2.81713]
[1733234383149,0.56638567,3549.8,3549.2,2.81745]
[1733234383348,0.56638567,3549.8,3548.9,2.81777]
[1733234383809,0.56638567,3549.8,3549.5,2.81728]
[1733234384016,0.1454196,3549.7,3549.5,2.81728]
[1733234384323,0.1454196,3549.7,3548.2,1.6312]
[1733234384677,0.1454196,3549.7,3549.1,2.81758]
[1733234385023,0.1454196,3549.7,3549.3,2.81745]
[1733234385237,0.1454196,3549.7,3548.5,2.81804]
[1733234385517,0.1454196,3549.7,3548.3,0.444956]
[1733234385723,0.1454196,3549.7,3549.6,2.81721]
[1733234385921,0.1454196,3549.7,3548.4,2.81812]
[1733234386217,0.1454196,3549.7,3549.0,2.81767]
[1733234386375,0.1454196,3549.7,3546.9,0.1]
[1733234386577,1.5783,3549.6,3547.0,1.68068356]
[1733234386777,1.5783,3549.6,3547.2,1.5363]
[1733234386972,0.1454196,3549.7,3548.5,1.5363]
[1733234387204,0.1454196,3549.7,3549.6,2.81721]
[1733234387434,0.1454196,3549.7,3549.3,2.8174]
[1733234387588,0.1454196,3549.7,3549.6,2.81721]
[1733234387787,0.1454196,3549.7,3549.6,3.380671]
[1733234388024,1.5783,3550.8,3550.5,2.81643]
[1733234388222,1.5783,3550.8,3550.6,2.81637]
[1733234388434,1.5783,3550.8,3550.6,2.80667694]
[1733234388639,1.13708349,3551.8,3549.7,0.02816577]
[1733234388837,1.5208,3551.4,3549.8,1.80133458]
[1733234389047,1.5208,3551.4,3551.3,2.81587]
[1733234389196,1.5438,3552.2,3550.7,2.81633]
[1733234389392,1.5438,3552.2,3550.2,2.81668]
[1733234389393,1.5438,3551.9,3550.3,2.81663]
[1733234389693,1.5438,3551.9,3550.1,2.81679]
[1733234389941,1.5438,3551.7,3549.2,1.5818]
[1733234390146,1.5438,3551.7,3549.6,2.81714]
[1733234390463,2.13364994,3550.4,3549.2,1.5818]
[1733234390640,1.5551,3550.4,3549.2,1.5818]
[1733234390948,1.5783,3551.5,3549.3,0.02816745]
[1733234391248,0.18705682,3551.4,3549.4,0.44274774]
[1733234391401,0.18705682,3551.4,3550.7,2.81634]
[1733234391605,0.18705682,3551.4,3549.5,2.84545606]
[1733234391606,0.18705682,3551.4,3550.9,2.81618]
[1733234391844,0.18705682,3551.4,3549.7,0.02816325]
[1733234392000,0.18705682,3551.4,3549.4,3.26009774]
[1733234392001,1.5783,3551.5,3550.0,5.6338]
[1733234392213,1.5783,3551.5,3550.9,2.81614]
[1733234392554,1.5783,3551.5,3549.4,0.44274774]
[1733234392715,0.29226818,3551.6,3551.4,2.81579]
[1733234392917,0.29226818,3551.6,3551.5,2.81571]
[1733234393920,0.29226818,3551.6,3550.6,1.5434]
[1733234394144,0.29226818,3551.6,3551.5,2.81571]
[1733234394607,0.29225129,3552.0,3551.7,2.81555]
[1733234394922,0.55611043,3551.9,3551.8,2.8154]
[1733234395128,0.7987666,3551.9,3550.7,2.81634]
[1733234395319,0.7987666,3551.9,3551.4,2.81575]
[1733234395519,0.7987666,3551.9,3551.6,2.81562]
[1733234395769,0.7987666,3551.9,3551.5,2.81568]
[1733234396046,0.7987666,3551.9,3550.3,2.81662]
[1733234396047,1.5335,3551.8,3549.6,2.81721]
[1733234396207,0.26245179,3551.7,3550.2,2.81668]
[1733234396408,0.26245179,3551.7,3549.7,0.447881]
[1733234396607,0.26245179,3551.7,3550.9,2.81611]
[1733234396850,0.26245179,3551.7,3551.1,2.81602]
[1733234397159,0.26245179,3551.7,3550.9,2.81613]
[1733234397452,0.26245179,3551.7,3549.9,2.81698]
[1733234397623,0.26245179,3551.7,3549.4,1.6616]
[1733234397953,1.5335,3551.8,3549.5,0.19432523]
[1733234398260,1.5335,3551.8,3551.7,2.81555]
[1733234398428,1.5335,3551.8,3551.3,2.81579]
[1733234398760,1.5335,3551.8,3551.3,2.81586]
[1733234398924,1.5335,3551.8,3551.3,1.129394]
[1733234399253,1.5335,3551.8,3551.7,2.81555]
[1733234399458,2.10213613,3551.8,3551.3,1.129394]
[1733234399641,2.10213613,3551.8,3551.3,3.945244]
[1733234399846,2.10213613,3551.8,3551.3,1.129394]
[1733234400155,2.10213613,3551.8,3551.3,3.945254]
[1733234400356,2.10213613,3551.8,3551.3,1.129394]
[1733234400711,2.34157487,3551.8,3551.3,1.129394]
[1733234400905,2.34157487,3551.8,3550.2,2.81674]
[1733234400906,1.5417,3551.7,3550.2,2.81674]
[1733234401106,1.5417,3551.7,3550.3,2.81665]
[1733234401343,1.5417,3551.7,3549.6,1.129769]
[1733234401344,1.5417,3551.7,3549.9,2.81694]
[1733234401558,1.5417,3551.7,3550.7,2.81627]
[1733234401708,1.5417,3551.7,3549.6,1.129769]
[1733234401909,1.5417,3551.7,3550.0,2.81683]
[1733234402114,1.5417,3551.7,3549.9,2.81697]
[1733234402309,1.5687,3550.4,3549.6,1.129769]
[1733234402530,1.5687,3550.4,3548.5,2.81806]
[1733234402871,1.5687,3550.4,3548.4,1.6409]
[1733234402872,1.5687,3550.4,3549.4,1.130027]
[1733234403740,1.5687,3550.4,3548.4,1.6409]
[1733234403741,0.57506904,3549.5,3547.1,0.16806836]
[1733234404070,0.57506904,3549.5,3548.3,1.130359]
[1733234404380,0.57506904,3549.5,3547.1,2.98719836]
[1733234404381,1.5783,3549.4,3547.8,2.81863]
[1733234404521,1.5783,3549.4,3547.9,0.281863]
[1733234404726,1.5783,3549.4,3547.7,0.575069]
[1733234405131,1.5783,3549.4,3546.3,1.5676]
[1733234405368,1.573028,3549.4,3546.4,0.0281912]
[1733234405569,3.3,3550.0,3547.2,1.130683]
[1733234405570,0.5689747,3548.2,3547.2,1.130683]
[1733234406369,3.0,3550.0,3547.3,0.02818997]
[1733234406575,0.5549768,3548.3,3547.2,1.130683]
[1733234410634,0.56796333,3545.6,3545.2,1.13124]
[1733234410828,1.5731,3545.5,3545.2,1.13124]
[1733234411244,1.5731,3545.5,3545.1,0.1235985]
[1733234411588,1.5731,3545.5,3544.8,1.131462]
[1733234412390,1.5731,3545.5,3543.8,1.5573]
[1733234412526,1.5731,3545.5,3543.9,1.31534834]
[1733234413039,1.5731,3545.5,3543.9,1.287139]
[1733234413227,0.56796333,3545.6,3544.0,0.02820916]
[1733234413426,1.5731,3546.2,3544.0,0.02820916]
[1733234413626,1.5731,3546.2,3544.4,1.5316]
[1733234413627,0.56660822,3546.2,3544.4,1.5316]
[1733234413826,1.5095,3546.9,3544.7,0.1]
[1733234414026,1.5095,3546.9,3544.5,0.19135961]
[1733234414027,1.5095,3546.9,3544.9,1.5298]
[1733234414779,1.5095,3546.9,3544.9,1.55800009]
[1733234415282,1.5095,3546.9,3546.8,0.005]
[1733234415571,1.5095,3546.9,3544.6,0.02820397]
[1733234415775,2.07830878,3546.9,3544.6,0.18284437]
[1733234416329,2.07830878,3546.9,3544.6,0.1546404]
[1733234416526,1.5496,3546.8,3544.6,0.1546404]
[1733234417181,0.57519671,3546.0,3544.6,0.1546404]
[1733234417380,1.5329,3545.9,3544.6,0.1546404]
[1733234417672,1.5329,3545.9,3544.7,0.02820602]
[1733234417874,1.5329,3546.5,3544.6,0.1546404]
[1733234418170,1.5329,3546.5,3544.7,0.02820084]
[1733234418698,1.5329,3546.5,3544.6,0.18283971]
[1733234418971,0.55885943,3546.5,3544.9,1.529]
[1733234419276,0.3,3548.7,3544.6,0.1546404]
[1733234419277,0.43768645,3546.4,3545.1,0.1]
[1733234419490,0.43768645,3546.4,3545.2,0.02819361]
[1733234419631,0.29218017,3546.4,3545.3,1.633]
[1733234419831,0.0913063,3546.4,3545.9,0.1]
[1733234420067,0.14547369,3547.6,3546.0,1.66118781]
[1733234420264,0.14547369,3547.6,3546.1,0.17611878]
[1733234420483,1.5187,3547.5,3546.1,0.17611878]
[1733234420768,1.5187,3547.5,3546.0,1.633]
[1733234420973,0.14547369,3547.6,3546.0,1.633]
[1733234421181,0.14547369,3547.6,3546.1,0.02819435]
[1733234421551,0.14547369,3547.6,3546.2,1.551]
[1733234421751,1.71857369,3547.6,3546.2,1.551]
[1733234422071,1.71857369,3547.6,3545.0,0.1]
[1733234422072,1.71857369,3547.6,3545.2,1.551]
[1733234422267,0.55611745,3547.3,3545.2,1.551]
[1733234422600,0.55611745,3547.3,3545.3,0.0281983]
[1733234423105,0.55611745,3547.3,3545.4,1.5197]
[1733234423317,0.55611745,3547.3,3545.9,1.5197]
[1733234423452,0.14547369,3547.6,3546.1,1.5197]
[1733234423650,1.5731,3549.2,3546.4,1.5197]
[1733234423852,1.5731,3549.2,3546.6,1.6063]
[1733234423853,0.14596321,3548.5,3546.6,1.6063]
[1733234424091,1.5731,3549.2,3546.8,1.6063]
[1733234424393,1.5731,3549.2,3546.9,0.02818219]
[1733234424394,0.14595509,3548.5,3546.9,0.02818219]
[1733234424603,0.14595509,3548.5,3547.1,1.5507]
[1733234424754,0.57030009,3549.1,3547.0,0.16344822]
[1733234424755,0.57030009,3549.1,3547.2,1.57887739]
[1733234424964,0.14596824,3548.9,3547.2,1.57887739]
[1733234425566,0.14596824,3548.9,3547.2,1.5507]
[1733234425766,0.14596824,3548.9,3547.2,1.57887978]
[1733234426075,0.14596824,3548.9,3547.3,0.1742328]
[1733234426271,0.14596824,3548.9,3547.3,0.20241111]
[1733234426577,0.14596824,3548.9,3547.3,0.1742328]
[1733234426903,0.14596824,3548.9,3547.4,0.02817951]
[1733234427126,0.14596824,3548.9,3547.4,0.02817543]
[1733234427329,0.55453532,3549.7,3547.5,1.521]
[1733234427503,0.55453532,3549.7,3547.6,1.54917372]
[1733234427692,0.14593681,3549.2,3547.6,1.54917522]
[1733234428018,1.5181,3550.2,3547.6,1.54917522]
[1733234428178,0.14592328,3549.2,3547.6,1.54917522]
[1733234428373,0.56479052,3549.8,3547.7,1.7970486]
[1733234428602,0.14593867,3549.8,3549.2,2.81752]
[1733234428770,0.14593867,3549.8,3549.1,1.6246]
[1733234428771,0.14593867,3549.8,3549.3,2.81742]
[1733234428982,0.14593867,3549.8,3549.1,1.6246]
[1733234429197,0.14593867,3549.8,3549.2,2.81746]
[1733234429424,0.14593867,3549.8,3549.3,0.444206]
[1733234429724,0.14593867,3549.8,3549.3,3.261616]
[1733234430331,0.14593867,3549.8,3549.7,2.81713]
[1733234430693,0.14593867,3549.8,3549.3,0.444206]
[1733234430930,0.14593867,3549.8,3549.1,1.6246]
[1733234431133,0.14593867,3549.8,3548.7,2.81789]
[1733234431441,1.5633,3549.7,3548.1,2.81833]
[1733234431717,1.5633,3549.7,3547.8,1.5158]
[1733234432034,1.5633,3549.7,3546.6,2.81955]
[1733234432035,1.5662,3549.2,3547.1,2.81917]
[1733234432323,0.30234393,3549.6,3547.2,0.281917]
[1733234432324,1.5662,3549.0,3547.2,0.281917]
[1733234432551,0.21230278,3549.1,3547.2,0.281917]
[1733234432838,1.5662,3549.6,3547.3,0.02818392]
[1733234432999,1.5662,3549.6,3547.2,0.281917]
[1733234433205,0.5540041,3549.1,3548.3,1.5465]
[1733234433400,1.5662,3549.6,3548.9,2.81776]
[1733234433925,1.5731,3550.7,3548.8,2.81785]
[1733234434097,0.19387454,3550.6,3549.3,2.81738]
[1733234434297,0.57139791,3549.7,3549.6,2.81716]
[1733234434545,1.5731,3550.7,3549.6,2.81716]
[1733234434688,0.14588032,3550.5,3549.7,0.02816744]
[1733234435184,0.14588032,3550.5,3549.4,1.5661]
[1733234435386,0.14588032,3550.5,3549.5,2.9739]
[1733234435618,0.14588032,3550.5,3550.4,2.81658]
[1733234435821,0.14588032,3550.5,3549.9,2.81697]
[1733234435822,0.14588032,3550.5,3549.5,0.15661]
[1733234436032,0.14588032,3550.5,3549.4,4.38346]
[1733234436196,0.14588032,3550.5,3549.6,2.8172]
[1733234436408,0.14588032,3550.5,3549.4,1.5661]
[1733234436587,0.14588032,3550.5,3548.9,1.83340241]
[1733234436788,0.55461904,3551.1,3548.9,1.83340241]
[1733234436789,8.74e-06,3551.1,3551.0,2.8161]
[1733234436987,1.5731,3551.9,3550.4,2.81654]
[1733234437192,0.5607181,3551.4,3549.5,2.81729]
[1733234437416,0.5607181,3551.4,3549.9,2.81692]
[1733234437635,0.2,3552.8,3549.6,0.438259]
[1733234437636,1.13708349,3553.0,3550.1,1.5653]
[1733234437788,1.5731,3551.7,3551.2,2.81594]
[1733234437989,1.5731,3551.7,3551.0,2.8161]
[1733234438220,1.5731,3551.7,3551.1,2.81601]
[1733234438405,1.5731,3551.7,3550.6,2.81642]
[1733234438406,1.5731,3551.7,3550.9,2.81611]
[1733234438608,1.5731,3551.7,3550.2,2.81674]
[1733234438822,1.5731,3551.7,3550.3,0.438204]
[1733234439131,1.5731,3552.8,3550.3,0.438204]
[1733234439288,1.5731,3552.8,3550.1,1.5653]
[1733234439289,1.5731,3552.8,3551.3,2.8158]
[1733234439491,1.5731,3552.8,3551.5,2.81571]
[1733234439742,1.5731,3552.8,3551.2,2.81594]
[1733234439942,1.5731,3552.8,3550.7,1.5275]
[1733234439943,0.55603086,3552.7,3550.7,1.5275]
[1733234440168,0.55603086,3552.7,3550.8,2.81626]
[1733234440325,0.55603086,3552.7,3551.1,2.81599]
[1733234440525,0.55603086,3552.7,3552.6,2.81483]
[1733234441653,0.14596813,3554.1,3552.6,2.81483]
[1733234441654,0.14596813,3554.1,3553.4,2.81415]
[1733234441815,0.14596813,3554.1,3553.9,2.81378]
[1733234442037,0.75,3554.7,3553.9,2.81378]
[1733234442038,0.55557908,3554.3,3554.0,0.02813252]
[1733234442210,0.75,3554.7,3554.6,2.81325]
[1733234443115,0.56334735,3554.7,3554.6,2.81325]
[1733234444372,0.14568766,3555.6,3555.0,2.81293]
[1733234444574,0.14568766,3555.6,3554.6,2.84137687]
[1733234444575,0.14568766,3555.6,3555.1,2.84095039]
[1733234444775,0.55452749,3555.9,3554.4,1.6031]
[1733234444994,1.5731,3556.5,3554.5,0.16031]
[1733234445292,1.5731,3556.5,3553.1,0.2]
[1733234445293,0.56129759,3556.0,3554.1,2.81364]
[1733234445505,0.56129759,3556.0,3554.3,2.81348]
[1733234445659,0.56129759,3556.0,3554.3,2.81344]
[1733234445969,0.56129759,3556.0,3553.7,1.5045]
[1733234446170,0.29289134,3556.4,3553.7,1.5045]
[1733234446171,0.29289134,3556.4,3554.4,2.84149918]
[1733234446404,0.29289134,3556.4,3554.5,0.28414992]
[1733234446405,0.47949047,3556.4,3554.5,0.28414992]
[1733234446611,0.47949047,3556.4,3554.6,0.02812196]
[1733234446612,1.05009695,3556.4,3554.6,0.02812196]
[1733234446921,0.29289134,3556.4,3554.7,1.5858]
[1733234447121,0.29289134,3556.4,3555.0,2.81286]
[1733234447417,0.29289134,3556.4,3554.8,2.84121546]
[1733234447582,0.29289134,3556.4,3554.7,1.5858]
[1733234447912,0.14562134,3556.3,3554.8,0.02812347]
[1733234448079,0.14562134,3556.3,3555.5,2.81251]
[1733234448080,0.56417489,3556.1,3555.5,2.81251]
[1733234448283,0.14562134,3556.3,3554.9,0.16139235]
[1733234448513,0.14562134,3556.3,3554.2,1.6309]
[1733234448718,2.08889731,3556.2,3553.6,1.6309]
[1733234448870,2.08889731,3556.2,3553.7,0.02812918]
[1733234449071,1.5298,3556.2,3556.0,0.02172851]
[1733234449276,1.5298,3556.2,3554.2,2.8135]
[1733234449567,1.5298,3556.2,3554.0,0.02812587]
[1733234449568,1.5298,3556.2,3555.5,2.81253]
[1733234449809,1.5298,3556.2,3554.5,1.5959]
[1733234450017,1.5298,3556.2,3554.3,0.28416259]
[1733234450018,0.56901151,3555.6,3554.4,2.81335]
[1733234450169,0.56901151,3555.6,3554.3,0.31228851]
[1733234450368,0.56901151,3555.6,3554.6,2.81319]
[1733234450571,1.5298,3556.2,3554.3,0.28416259]
[1733234450771,0.57402756,3555.4,3553.3,1.531]
[1733234450971,1.5066,3555.3,3553.5,2.81407]
[1733234451185,0.75,3554.4,3553.3,1.55913174]
[1733234451419,0.75,3554.4,3553.7,2.81393]
[1733234451617,0.75,3554.4,3553.8,0.02813229]
[1733234451819,0.75,3554.4,3554.1,2.81364]
[1733234451973,0.75,3554.4,3553.3,4.34521]
[1733234452172,0.75,3554.4,3554.0,2.81372]
[1733234452390,8.77,3558.1,3553.3,1.531]
[1733234452585,0.57436572,3554.7,3553.3,1.531]
[1733234452784,0.57436572,3554.7,3552.7,0.2]
[1733234452986,0.57436572,3554.7,3552.2,2.81514]
[1733234453220,7.81215,3556.0,3552.3,0.465764]
[1733234453569,0.14562711,3554.6,3552.1,3.01517]
[1733234453781,5.28,3556.0,3552.1,0.2]
[1733234453999,0.56918059,3553.5,3552.3,2.81505]
[1733234454204,0.56918059,3553.5,3552.0,1.6425]
[1733234454524,0.56918059,3553.5,3552.1,0.02814659]
[1733234454821,0.56918059,3553.5,3552.2,0.19706466]
[1733234455171,0.56918059,3553.5,3551.9,0.1]
[1733234455418,0.56918059,3553.5,3552.0,0.1]
[1733234455587,0.0665,3553.4,3552.1,2.81523]
[1733234455774,0.0665,3553.4,3552.1,0.0281461]
[1733234455969,0.0665,3553.4,3552.2,0.1]
[1733234456222,0.0665,3553.4,3552.5,2.8149]
[1733234456387,0.56918059,3553.5,3552.6,0.28430448]
[1733234456590,0.56918059,3553.5,3552.2,2.81515]
[1733234456806,0.56918059,3553.5,3552.4,2.81498]
[1733234457015,0.56918059,3553.5,3552.3,0.12814474]
[1733234457319,0.56918059,3553.5,3552.3,0.3]
[1733234457526,0.56918059,3553.5,3552.1,2.81516]
[1733234457527,0.0665,3555.9,3553.2,2.81436]
[1733234457672,0.0665,3554.6,3553.1,1.7876]
[1733234457874,0.0665,3554.6,3553.5,2.81411]
[1733234458074,0.0665,3554.6,3553.4,0.1]
[1733234458387,0.0665,3554.6,3553.6,0.1]
[1733234458857,0.0665,3554.6,3553.7,0.31141]
[1733234459421,0.14556627,3554.9,3553.9,0.1]
[1733234459630,0.42274467,3556.7,3554.2,1.5132]
[1733234459773,0.42274467,3556.7,3554.4,0.1]
[1733234459975,0.56481843,3555.8,3554.5,2.84144738]
[1733234460291,0.56481843,3555.8,3554.5,0.2]
[1733234460515,0.56481843,3555.8,3555.1,2.81284]
[1733234460676,0.0665,3556.7,3555.1,2.81284]
[1733234460877,0.0665,3556.7,3554.9,2.813]
[1733234460878,0.14555321,3556.0,3554.9,2.813]
[1733234461084,0.56831611,3556.2,3554.8,0.2]
[1733234461304,0.56831611,3556.2,3555.1,2.81285]
[1733234461521,0.56831611,3556.2,3555.2,3.094045]